Cogmind - Beta 16 @@@ ROGUE MODE // 2025.12.22 @ 00:49:47 Player: Xellophane Result: Self-destructed Performance ------------- Evolutions (1) 500 Regions Visited (2) 400 Robots Destroyed (29) 145 Value Destroyed (737) 737 Prototype IDs (3) 60 Alien Tech Used (0) 0 Bonus (0) 0 TOTAL SCORE: 1842 Bonus ------- None Cogmind --------- Core Integrity 93/400 Matter 283/300 Energy 100/100 System Corruption 0% Temperature Cool (0) Movement Core (350) Ox6 Location -9/Materials Parts ------- > --- POWER (1) -------- (None) > --- PROPULSION (4) --- (None) > --- UTILITY (2) ------ Large Storage Unit Signal Interpreter > --- WEAPON (2) ------- (None) > --- INVENTORY (15) --- Heavy Ion Engine Flight Unit Flight Unit Improved Terrain Scanner Improved Targeting Computer Improved Targeting Computer Improved Targeting Computer Improved Targeting Computer Propulsion Shielding Hacking Suite Peak State ------------ > --- POWER ------------ Ion Engine > --- PROPULSION ------- Improved Aluminum Leg Improved Aluminum Leg > --- UTILITY ---------- Large Storage Unit Signal Interpreter > --- WEAPON ----------- Beam Rifle Light Assault Rifle > --- INVENTORY -------- Light Ion Engine Improved Aluminum Leg Improved Aluminum Leg Flight Unit Flight Unit Flight Unit Flight Unit Improved Terrain Scanner Improved Targeting Computer Improved Targeting Computer Improved Targeting Computer Improved Targeting Computer [Rating: 12] Favorites ----------- Power Ion Engine Engine Ion Engine Propulsion Improved Aluminum Leg Treads Light Treads Leg Improved Aluminum Leg Flight Unit Flight Unit Utility Signal Interpreter Device ECM Suite Storage Large Storage Unit Processor Signal Interpreter Weapon Light Assault Rifle Energy Gun Beam Rifle Ballistic Gun Light Assault Rifle Special Melee Weapon Datajack Build | -11 -10 -9 ------- Run | Yrd Mat Mat Slots Evolved 2 | . . 2 Power . | . . . Propulsion 2 | . . 2 Utility . | . . . Weapon . | . . . Parts Attached 26 | 7 13 6 Power 3 | 2 . 1 Engine 3 | 2 . 1 Core . | . . . Reactor . | . . . Propulsion 10 | 2 4 4 Treads 2 | 2 . . Leg 4 | . 4 . Wheel . | . . . Hover . | . . . Flight 4 | . . 4 Utility 6 | 2 4 . Device 2 | 1 1 . Storage 3 | 1 2 . Processor 1 | . 1 . Hackware . | . . . Protection . | . . . Artifact . | . . . Weapon 7 | 1 5 1 Energy Gun 3 | . 3 . Energy Cannon . | . . . Ballistic Gun 3 | 1 2 . Ballistic Cannon . | . . . Launcher . | . . . Special Weapon . | . . . Impact Weapon . | . . . Slashing Weapon . | . . . Piercing Weapon . | . . . Special Melee Weapon 1 | . . 1 Unidentified Prototypes . | . . . Parts Lost 12 | . 1 11 Power 2 | . . 2 Propulsion 6 | . . 6 Utility . | . . . Weapon 4 | . 1 3 Highest Loss Streak 9 | . 1 9 To Critical Strikes . | . . . Average Backups 11 | 2 11 14 Power . | . 1 . Propulsion 4 | 1 4 5 Utility 5 | . 5 7 Weapon . | . . . Tool/Special . | . . . Unused Backups 11 | . 3 8 Power 1 | . . 1 Propulsion 4 | . 3 1 Utility 6 | . . 6 Weapon . | . . . Tool/Special . | . . . Average Slot Usage (%) 91 | . 98 69 Engine 12 | . 14 7 Treads 8 | . 10 . Leg 17 | . 17 19 Storage 13 | . 14 11 Processor 12 | . 12 11 Energy Gun 11 | . 14 . Ballistic Gun 13 | . 12 17 Peak Build Rating 12 | 8 12 11 Average Rating 10 | 4 10 10 On Entrance 6 | . 8 11 Avg Prop Armor Cover (%) 35 | 35 . . Naked Turns . | . . . Heaviest Build 29 | 12 29 27 Greatest Support 40 | 40 40 26 Greatest Overweight (x) 6 | 2 1 6 Average Overweight (x) . | . . . Largest Inventory Capacity 15 | 8 15 15 Average Capacity 13 | 7 12 15 Most Carried 15 | 3 15 15 Average Carried 12 | 2 11 14 Final Capacity 15 | 8 15 15 Final Carried 15 | 3 15 10 Class Distribution -------------------- 100% | Mutant Dominant Class ---------------- Mutant | -10/Materials Mutant | -9/Materials Resources | -11 -10 -9 ----------- Run | Yrd Mat Mat Matter Collected 527 | 255 202 70 Remotely . | . . . Salvage Created 949 | 26 631 292 Parts 74 | 5 47 22 Haulers Intercepted . | . . . Recyclers Shooed 1 | . 1 . Parts Field Recycled . | . . . Retrieved Matter . | . . . Parts Self-Destructed . | . . . Prevented . | . . . Parts Restored . | . . . Kills | -11 -10 -9 ------- Run | Yrd Mat Mat Combat Hostiles Destroyed 24 | . 18 6 Guns 24 | . 18 6 Classes Destroyed 7 | 1 4 2 Tunneler 2 | 2 . . Recycler 1 | . . 1 Operator 1 | . 1 . Watcher 1 | . 1 . Swarmer 7 | . 6 1 Grunt 16 | . 12 4 Sentry 1 | . . 1 Best Kill Streak 4 | 2 4 2 Combat Bots Only 4 | . 4 2 Max Kills in Single Turn 2 | 1 2 1 Gunslinging 1 | . 1 . Exploded . | . . . Melee . | . . . Uniques/NPCs Destroyed . | . . . Combat | -11 -10 -9 -------- Run | Yrd Mat Mat Hostile Shots Fired 257 | . 113 144 Missed 68 | . 29 39 Hits 189 | . 84 105 Projectile 189 | . 84 105 Critical Strikes 6 | . 4 2 Damage Taken 1846 | . 854 992 Core 521 | . 214 307 Absorbed by Shields . | . . . Core Remaining (%) 57 | 100 14 . Volleys Fired 109 | 9 75 25 Largest 2 | 1 2 2 Hottest 96 | 20 96 40 Shots Fired 190 | 9 134 47 Gun 190 | 9 134 47 Cannon . | . . . Launcher . | . . . Special . | . . . Kinetic 122 | 9 66 47 Thermal 68 | . 68 . Explosive . | . . . Electromagnetic . | . . . Robot Hit Streak 11 | 4 11 7 Robot Miss Streak 6 | 3 6 2 Penetration Max . | . . . Secondary Targets 2 | . 2 . Max Gunslinging Chain 1 | . 1 . Shots Hit Robots 116 | 5 73 38 Core Hits 54 | 3 36 15 Critical Kills . | . . . Critical Parts Destroyed . | . . . Critical Strikes 2 | . 2 . Burn 2 | . 2 . Melee Attacks 7 | . . 7 Impact . | . . . Slashing . | . . . Piercing . | . . . Sneak Attacks . | . . . Combat Hostiles . | . . . Follow-up Attacks . | . . . Damage Inflicted 1189 | 42 863 284 Guns 1182 | 42 863 277 Cannons . | . . . Explosions . | . . . Melee . | . . . Ramming 7 | . . 7 Kinetic 613 | 42 294 277 Thermal 569 | . 569 . Explosive . | . . . Electromagnetic . | . . . Impact . | . . . Slashing . | . . . Piercing . | . . . Highest Corruption . | . . . Average Corruption . | . . . Corruption Purged . | . . . Corruption Blocked . | . . . Overload Shots . | . . . Overflow Damage . | . . . Projectiles . | . . . Explosions . | . . . Melee . | . . . Knockbacks . | . . . Impact . | . . . Kinetic . | . . . Secondary . | . . . Self-Inflicted Damage . | . . . Shots . | . . . Rammed 4 | . . 4 Targets Rammed 8 | . . 8 Kicked 4 | . . 4 Crushed . | . . . Highest Temperature 312 | . 312 3 Average Temperature 83 | . 87 2 Received Heat Transfer 594 | . 345 249 Effects 1 | . 1 . Interference 1 | . 1 . Siege Activations . | . . . Martial Activations . | . . . Shielding Activations . | . . . Robots Disrupted . | . . . Combat Hostiles . | . . . Robots Corrupted . | . . . Combat Hostiles . | . . . Parts Fried . | . . . Impact Corruptions . | . . . Robots Melted . | . . . Combat Hostiles . | . . . Parts Melted . | . . . Heat Transferred 1604 | . 1604 . Parts Sabotaged . | . . . Parts Stolen . | . . . Parts Stripped . | . . . Power Chain Reactions . | . . . Alert | -11 -10 -9 ------- Run | Yrd Mat Mat Maximum Alert Level . | . . . Low Security (%) 100 | 100 100 100 Level 1 . | . . . Level 2 . | . . . Level 3 . | . . . Level 4 . | . . . Level 5 . | . . . High Security . | . . . Max Security . | . . . Peak Influence 173 | 5 173 75 Initial 40 | . . 40 Average 67 | . 80 34 Influence Increases 692 | 10 512 170 Destroy 0b10 Robot/C 480 | . 360 120 Destroy 0b10 Robot/NC 25 | 10 10 5 Destroy Leader 112 | . 82 30 Successful Hack 29 | . 29 . Destroy Structure 1 | . 1 . Lose Combat Pursuer 45 | . 30 15 Influence Decreases 692 | 10 414 268 Entered New Map 58 | . . 58 Time Decay 589 | 10 404 175 Lost Part 45 | . 10 35 Squads Dispatched 6 | . 4 2 Investigation 4 | . 3 1 Extermination . | . . . Reinforcement 2 | . 1 1 Assault . | . . . Garrison . | . . . Intercept . | . . . Searches Triggered . | . . . Construction Impeded . | . . . Haulers Reinforced . | . . . Active Scanning Responses . | . . . Cargo Convoy Interrupts . | . . . Stealth | -11 -10 -9 --------- Run | Yrd Mat Mat Distress Signals 3 | . 3 . Communications Jammed . | . . . Distress Signals . | . . . Times Spotted 47 | . 34 13 Peak Tracking Total 5 | . 3 5 Tactical Retreats 3 | . 2 1 ECM-based Alert Blocks 1 | . 1 . Traps | -11 -10 -9 ------- Run | Yrd Mat Mat Traps Triggered 1 | . 1 . Indirectly . | . . . Trap Hack Attempts . | . . . Triggered . | . . . Disarmed 5 | . 5 . Reprogrammed . | . . . Reused . | . . . Traps Extracted . | . . . Installed . | . . . Triggered . | . . . Machines | -11 -10 -9 ---------- Run | Yrd Mat Mat Machines Disabled . | . . . Max in Single Turn . | . . . Machines Repaired . | . . . Machines Dismantled . | . . . Machines Sabotaged . | . . . Overloaded Fab Kills . | . . . Hacking | -11 -10 -9 --------- Run | Yrd Mat Mat Machines Accessed 8 | . 6 2 Terminals 8 | . 6 2 Fabricators . | . . . Repair Stations . | . . . Recycling Units . | . . . Scanalyzers . | . . . Garrison Access . | . . . Total Hacks 21 | . 14 7 Successful 9 | . 7 2 Failed 12 | . 7 5 Catastrophic 6 | . 3 3 Database Lockouts . | . . . Manual 13 | . 8 5 Terminals 21 | . 14 7 Fabricators . | . . . Repair Stations . | . . . Recycling Units . | . . . Scanalyzers . | . . . Garrison Access . | . . . Terminal Hacks 9 | . 7 2 Prototype ID Bank 2 | . 2 . Terminal Index 2 | . 1 1 Scanalyzer Index 2 | . 1 1 Disarm Traps 1 | . 1 . Hauler Manifests 1 | . 1 . Zone Layout 1 | . 1 . Fabricator Hacks . | . . . Repair Station Hacks . | . . . Recycling Unit Hacks . | . . . Scanalyzer . | . . . Garrison Access Hacks . | . . . Unauthorized Hacks . | . . . Terminals . | . . . Fabricators . | . . . Repair Stations . | . . . Recycling Units . | . . . Scanalyzers . | . . . Garrison Access . | . . . Data Cores Recovered . | . . . Used . | . . . Hacking Detections 7 | . 5 2 Full Trace Events 3 | . 2 1 Feedback Events . | . . . Feedback Blocked . | . . . Robot Schematics Acquired . | . . . Robots Built . | . . . Authchips . | . . . Time . | . . . Total Robot Build Rating . | . . . Part Schematics Acquired . | . . . Parts Built . | . . . Authchips . | . . . Time . | . . . Total Part Build Rating . | . . . Part Studies Acquired . | . . . Parts Repaired . | . . . Time . | . . . Parts Recycled . | . . . Recycled Matter . | . . . Retrieved Matter . | . . . Retrieved Components . | . . . Parts Scanalyzed . | . . . Part Schematics Acquired . | . . . Parts Damaged . | . . . Bothacking | -11 -10 -9 ------------ Run | Yrd Mat Mat Used RIF Installer . | . . . Robots Hacked 1 | . . 1 Non-combat . | . . . Combat 1 | . . 1 Robot Hacks Applied 1 | . . 1 parse_system 1 | . . 1 Relay Couplers Released . | . . . Fabnet Peak Effective % . | . . . Robots Rewired . | . . . Allies Hacked . | . . . Hacks Repelled . | . . . Allies | -11 -10 -9 -------- Run | Yrd Mat Mat Total Allies . | . . . Largest Group . | . . . Highest-Rated Group . | . . . Highest-Rated Ally . | . . . Total Orders . | . . . Ally Attacks . | . . . Total Damage . | . . . Kills . | . . . Allies Corrupted . | . . . Allies Melted . | . . . Intel | -11 -10 -9 ------- Run | Yrd Mat Mat Active Infowar (turns) 126 | 9 117 . Terrain 32 | 9 23 . ECM 94 | . 94 . Robot Analysis Total . | . . . Derelict Logs Recovered . | . . . Drone Launches . | . . . Drone Recoveries . | . . . Exploration | -11 -10 -9 ------------- Run | Yrd Mat Mat Turns Passed 1932 | 72 1424 436 Spaces Moved 921 | 35 661 225 Core 15 | 13 . 2 Treads 280 | 22 258 . Legs 606 | . 403 203 Wheels . | . . . Hover . | . . . Flight 20 | . . 20 Fastest Speed 50 | 50 120 111 Average Speed 162 | 127 171 140 Slowest Speed 360 | 160 190 360 Overloaded Moves . | . . . Propulsion Burnouts . | . . . Robots Hopped . | . . . Potential Cave-ins . | . . . Cave-ins Triggered . | . . . Exploration Rate (%) 37 | 3 89 21 Regions Visited 2 Branch Regions . Pre-discovered Areas . | . . . Known Exits Taken 1 | . 1 . Unknown Exits Taken 1 | 1 . . Scrap Searched . | . . . Spaces Dug . | . . . Terrain Destroyed . | . . . Melee . | . . . Projectile . | . . . AOE . | . . . Terrain Rammed . | . . . Walls Destroyed . | . . . Machines Disabled . | . . . Actions | -11 -10 -9 --------- Run | Yrd Mat Mat Total 1173 | 52 831 290 Wait 65 | . 50 15 Move 919 | 34 660 225 Hop . | . . . Pick Up 23 | 2 19 2 Fast Attach 12 | 6 6 . Attach 8 | . 2 6 Detach 1 | . 1 . Swap 7 | 1 5 1 Drop 14 | . 13 1 Fire 109 | 9 75 25 Melee 7 | . . 7 Ram 4 | . . 4 Kick 4 | . . 4 Crush . | . . . Escape Stasis . | . . . Rewire . | . . . Trap . | . . . Miscellaneous . | . . . Route ------- -11/Scrapyard -10/Materials (discovered 5 exits: *Mat x3 / *Min / *Sub) -9/Materials (discovered 2 exits: *Min / *Sto) History --------- Turn | Location | Event 2 | -11/Scrapyard | Met Revision 17 5 | -11/Scrapyard | Discovered new exit (range 15) 73 | -11/Scrapyard | Entered Materials 157 | -10/Materials | Discovered new exit (range 5) 225 | -10/Materials | Identified exit to Mines 298 | -10/Materials | Discovered new exit (range 13) 318 | -10/Materials | Build established: Mutant 663 | -10/Materials | Discovered new exit (range 4) 705 | -10/Materials | Identified exit to Materials 833 | -10/Materials | Core integrity fell below 50% 1142 | -10/Materials | Discovered new exit (range 6) 1150 | -10/Materials | Identified exit to Subcaves 1354 | -10/Materials | Discovered exit to Materials (range 5) 1436 | -10/Materials | Core integrity fell below 20% 1497 | -10/Materials | Entered another Materials area 1497 | -9/Materials | Evolved 2 slots: Propulsion x2 1534 | -9/Materials | Discovered new exit (range 4) 1539 | -9/Materials | Identified exit to Storage 1717 | -9/Materials | Discovered new exit (range 8) 1724 | -9/Materials | Identified exit to Mines 1920 | -9/Materials | Core integrity fell below 50% 1933 | -9/Materials | Self-destructed Last Messages --------------- 01855_ Jacked S-10 Pest... Right-click on available options for more info. Keyboard players can use Shift-a~z. >>parse_system Reading system data... 01857_ K-01 Serf collects debris. 01858_ Jacked S-10 Pest... 01858_ Command string: overload_power() 01858_ No effect. 01862_ R-06 Scavenger collects Flight Unit. 01869_ Jacked S-10 Pest... 01871_ Kicked S-10 Pest. 01871_ Imp. Aluminum Leg destroyed. 01872_ Kicked S-10 Pest. 01877_ Imp. Aluminum Leg destroyed. 01878_ Slammed into S-10 Pest. 01888_ Datajack destroyed. 01888_ Slammed into S-10 Pest. 01893_ Acquired 3 matter. 01912_ Flight Unit destroyed. Map ----- +----------------------------------------------------+ | #?# #?????????????????????????????????????????? | | #?# #?????????????????????????????????????????? | | #?# #?????????????????????????????????????????? | | ### #?????????????????????????????????????????? | | + #?????????????????????????????????????????? | | ####/######?????????????????????????????????????? | | ### #?????????????????????????????????????? | | # #?????????????????????????????????????? | | # #?????????????????????????????????????? | | %+% #?????????????????????????????????????? | | #% #?##?#??????? ?????????????????????? | | # ## ????? ????????????????????? | | ## ## ??? ???????????????????? | | ## ## T ? ????????????????????? | | ## ## ????????????????????? | | ####/####### #????????????????????? | | ##?# #?????# #????????????????????? | | ### ##????# ###??????????????????? | | #????# #??????????????????? | | #????# """ """ #??????????????????? | | #????# """"""""" #??????????????????? | | ## #????# """"" " #??????????????????? | | #### ######k #??????????????????? | | T # u g s a #??????????????????? | | # g #??????????????????? | | "" # s @ #??????????????????? | | "" ## ###/##########"T"#### #??????????????????? | | "" ## #[ % %#??#"""#????? #??????????????????? | | ## # #??#####?????????????????????????? | | "" ## # """""""%#????????????????????????????????? | | "" ## # """""""%#????????????????????????????????? | | "" ## # """""""%#????????????????????????????????? | | ## # """""""%#????????????????????????????????? | | ## # """"""" #????????????????????????????????? | | ##### # ?? #????????????????????????????????? | | ????? #??########????????????????????????????????? | | ????? ???????????????????????????????????????????? | | ?????????????????????????????????????????????????? | | ?????????????????????????????????????????????????? | | ?????????????????????????????????????????????????? | | ?????????????????????????????????????????????????? | | ?????????????????????????????????????????????????? | | ?????????????????????????????????????????????????? | | ?????????????????????????????????????????????????? | | | | | | | | | | | | | +----------------------------------------------------+ Best States ------------- Heat Dissipation 28 Energy Generation 10 Energy Capacity 250 Matter Stores 300 Matter Capacity 300 Sight Range 16 Terrain Scan Range 16 Terrain Scan Density 10 ECM Strength 1 Evasion (%) 55 Recoil Reduction 2 Item Schematics ----------------- None Robot Schematics ------------------ None Fabricated ------------ Nothing Repaired ---------- Nothing Studied --------- None Alien Tech Used ----------------- None Achievements -------------- You Again Challenges ------------ None Game ------ Seed TrapBiocellRocket Manual? 0 Play Time 00:24:30 Cumulative 23.9 hours Start 2025.12.22 @ 00:24:50 End 2025.12.22 @ 00:49:47 Sessions 1 Manual Loads 0 Difficulty Rogue Special Mode None Game No. 34 Rogue 34 Adventurer 0 Explorer 0 Win Type - Total 0 Types 0/0/0/0/0/0/0/0/0/0 Lore% 11 Gallery% 12 Achievement% 13 Wizard Run 0 Options --------- Layout 0 ASCII 0 Keyboard 1 Movement Numpad Keybinds 0 Fullscreen 2 Font 18/SmallcapsGlow Map View 76x50 Zoom Use 0% Tactical HUD 1 Map Filters NONE Filters NONE Steam 1 RUN: 345421f7-5431-48d6-a9c6-c25121211eab